bitfinex-derivatives/quotes_BTCF0:USTF0_20251206
["timestamp","ask_amount","ask_price","bid_price","bid_amount"]
[1765031655774,0.15229,90069.0,90068.0,0.40051934]
[1765031656273,0.15229,90069.0,90068.0,0.42424]
[1765031656679,0.15229,90069.0,90068.0,0.46396114]
[1765031656870,0.15229,90069.0,90068.0,0.53143114]
[1765031664682,0.15229,90069.0,90068.0,0.17063114]
[1765031667592,0.15229,90069.0,90068.0,0.13091]
[1765031671295,0.15229,90069.0,90068.0,0.49171]
[1765031674498,0.15129,90069.0,90068.0,0.49171]
[1765031675195,0.18743,90069.0,90068.0,0.49171]
[1765031676096,0.18843,90069.0,90068.0,0.49171]
[1765031677097,0.18743,90069.0,90068.0,0.49171]
[1765031677397,0.18843,90069.0,90068.0,0.49171]
[1765031678296,0.18843,90069.0,90068.0,0.13091]
[1765031678597,0.18843,90069.0,90068.0,0.49171]
[1765031680798,0.18743,90069.0,90068.0,0.49171]
[1765031680996,0.18843,90069.0,90068.0,0.49171]
[1765031690992,0.07601,90069.0,90068.0,0.49171]
[1765031691693,0.07501,90069.0,90068.0,0.49171]
[1765031691893,0.07601,90069.0,90068.0,0.49171]
[1765031692295,0.07501,90069.0,90068.0,0.49171]
[1765031693601,0.13189,90069.0,90068.0,0.49171]
[1765031695503,0.16399,90069.0,90068.0,0.49171]
[1765031696290,0.13189,90069.0,90068.0,0.49171]
[1765031696495,0.16399,90069.0,90068.0,0.49171]
[1765031699403,0.16399,90069.0,90068.0,0.13091]
[1765031699605,0.16399,90069.0,90068.0,0.49171]
[1765031702217,0.16399,90069.0,90068.0,0.40162]
[1765031702395,0.16399,90069.0,90068.0,0.44244]
[1765031704291,0.16499,90069.0,90068.0,0.44244]
[1765031705906,0.16499,90069.0,90068.0,0.48216302]
[1765031706110,0.16499,90069.0,90068.0,0.44244]
[1765031716105,0.16499,90069.0,90068.0,0.48215663]
[1765031717405,0.16499,90069.0,90068.0,0.44244]
[1765031718618,0.16499,90069.0,90068.0,0.48215981]
[1765031718807,0.16499,90069.0,90068.0,0.44244]
[1765031719917,0.16499,90069.0,90068.0,0.48216056]
[1765031720118,0.16499,90069.0,90068.0,0.48216044]
[1765031721020,0.16499,90069.0,90068.0,0.40052044]
[1765031721211,0.16499,90069.0,90068.0,0.3608]
[1765031721611,0.1185917,90068.0,90067.0,0.03972044]
[1765031721811,0.0111027,90060.0,90059.0,0.00016656]
[1765031722011,0.1504738,90051.0,90048.0,0.05935922]
[1765031722208,0.1504738,90051.0,90045.0,0.3608]
[1765031722209,0.1504738,90051.0,90050.0,0.08434572]
[1765031723317,0.1504738,90051.0,90050.0,0.04352572]
[1765031723617,0.1504738,90051.0,90050.0,0.00270572]
[1765031723818,0.1504738,90051.0,90050.0,0.04352572]
[1765031724011,0.1504738,90051.0,90050.0,0.08534572]
[1765031724410,0.1504738,90051.0,90050.0,0.08734572]
[1765031726121,0.1504738,90051.0,90050.0,0.00570572]
[1765031726621,0.1504738,90051.0,90050.0,0.08734572]
[1765031729231,0.1185943,90047.0,90041.0,0.00016656]
[1765031729421,0.1185949,90042.0,90041.0,0.00016656]
[1765031730724,0.1139155,90037.0,90036.0,0.3608]
[1765031730922,0.1139155,90037.0,90036.0,0.33822872]
[1765031732124,0.1126066,90028.0,90027.0,0.42711111]
[1765031732326,0.1413866,90028.0,90027.0,0.42711111]
[1765031733821,0.1423866,90028.0,90027.0,0.42711111]
[1765031734525,0.13128,90028.0,90027.0,0.42711111]
[1765031735327,0.001,90028.0,90027.0,0.42711111]
[1765031736023,0.05194,90028.0,90027.0,0.42711111]
[1765031736218,0.05294,90028.0,90027.0,0.42711111]
[1765031736618,0.05194,90028.0,90027.0,0.42711111]
[1765031736925,0.05294,90028.0,90027.0,0.42711111]
[1765031737328,0.05194,90028.0,90027.0,0.42711111]
[1765031737931,0.1015,90028.0,90027.0,0.42711111]
[1765031743430,0.13028,90028.0,90027.0,0.42711111]
[1765031754253,0.0111051,90041.0,90039.0,0.05246]
[1765031754433,0.38913,90052.0,90050.0,0.05246]
[1765031754434,0.04771656,90051.0,90050.0,0.05246]
[1765031754639,0.10679036,90051.0,90050.0,0.05246]
[1765031756239,0.10779036,90051.0,90050.0,0.05246]
[1765031758245,0.10679036,90051.0,90050.0,0.05246]
[1765031758438,0.10779036,90051.0,90050.0,0.05246]
[1765031758847,0.10679036,90051.0,90050.0,0.05246]
[1765031759139,0.10779036,90051.0,90050.0,0.05246]
[1765031763246,0.10679036,90051.0,90050.0,0.05246]
[1765031763442,0.10879036,90051.0,90050.0,0.05246]
[1765031765045,0.09768656,90051.0,90050.0,0.05246]
[1765031765352,0.10879036,90051.0,90050.0,0.05246]
[1765031766952,0.10879036,90051.0,90050.0,0.02623]
[1765031767342,0.10879036,90051.0,90050.0,0.04799]
[1765031767742,0.09567,90049.0,90048.0,0.3608]
[1765031768042,0.09567,90049.0,90048.0,0.38256]
[1765031768242,0.09567,90049.0,90048.0,0.40432]
[1765031769055,0.09667,90049.0,90048.0,0.40432]
[1765031769949,0.09667,90049.0,90048.0,0.3608]
[1765031770842,0.09667,90049.0,90048.0,0.38256]
[1765031771245,0.09667,90049.0,90048.0,0.3608]
[1765031771853,0.09667,90049.0,90048.0,0.38256]
[1765031772756,0.09667,90049.0,90048.0,0.40432]
[1765031775255,0.09667,90049.0,90037.0,0.3719055]
[1765031775256,0.09567,90043.0,90042.0,0.039687]
[1765031775554,0.09567,90043.0,90037.0,0.42034256]
[1765031775555,0.1067749,90042.0,90041.0,0.039687]
[1765031775756,0.1067749,90042.0,90040.0,0.039687]
[1765031775955,0.09567,90041.0,90040.0,0.039687]
[1765031776351,0.09567,90038.0,90037.0,0.3608]
[1765031780359,0.1067764,90030.0,90029.0,0.039687]
[1765031780660,0.12218,90028.0,90027.0,0.02187111]
[1765031781056,0.12218,90028.0,90027.0,0.04363111]
[1765031781857,0.12218,90028.0,90027.0,0.04563111]
[1765031782363,0.12218,90028.0,90027.0,0.04663111]
[1765031782565,0.12218,90028.0,90027.0,0.02487111]
[1765031782764,0.12218,90028.0,90027.0,0.00311111]
[1765031783550,0.12218,90028.0,90016.0,0.42034256]
[1765031783756,0.09567,90022.0,90021.0,0.01731383]
[1765031783956,0.1067784,90014.0,90013.0,0.00482]
[1765031784251,0.4675784,90014.0,90013.0,0.00482]
[1765031784655,0.467697,90014.0,90013.0,0.00482]
[1765031785166,0.467697,90014.0,90013.0,0.09246091]
[1765031785966,0.468697,90014.0,90013.0,0.09246091]
[1765031786364,0.468697,90014.0,90013.0,0.00482]
[1765031790159,0.14608,90004.0,90003.0,0.14438]
[1765031794564,0.20439,90004.0,90003.0,0.14438]
[1765031795466,0.14608,90004.0,90003.0,0.14438]
[1765031797862,0.04785,90004.0,90003.0,0.14438]
[1765031798062,0.5658494,90006.0,90005.0,0.19073]
[1765031799373,0.4676194,90006.0,90005.0,0.19073]
[1765031799674,0.3608,90006.0,90005.0,0.19073]
[1765031801681,0.0111078,90019.0,90013.0,0.19073]
[1765031801975,0.0001186,90014.0,90013.0,0.19073]
[1765031802272,0.1940586,90014.0,90013.0,0.19073]
[1765031803971,0.1950586,90014.0,90013.0,0.19073]
[1765031804368,0.25225,90010.0,90009.0,0.19073]
[1765031804673,0.25225,90010.0,90007.0,0.05951329]
[1765031804674,0.05831,90010.0,90007.0,0.09532]
[1765031804876,0.19394,90008.0,90007.0,0.09532]
[1765031805071,0.2050497,90003.0,90002.0,0.25024329]
[1765031805266,0.5658497,90003.0,90002.0,0.19073]
[1765031806377,0.5658497,90003.0,90002.0,0.25024329]
[1765031807176,0.5658497,90003.0,90002.0,0.25124329]
[1765031807375,0.5658497,90003.0,90002.0,0.19173]
[1765031807777,0.5658497,90003.0,90002.0,0.19073]
[1765031814487,0.4676197,90003.0,90002.0,0.19073]
[1765031814874,0.5533497,90003.0,90002.0,0.19073]
[1765031821187,0.18144,90003.0,90002.0,0.19073]
[1765031821587,0.05831,90010.0,90009.0,0.185309]
[1765031821784,0.05183,90020.0,90012.0,0.1742]
[1765031821785,0.0111078,90019.0,90012.0,0.1742]
[1765031822184,0.5349,90013.0,90012.0,0.1742]
[1765031823491,0.5359,90013.0,90012.0,0.1742]
[1765031824094,0.5349,90013.0,90012.0,0.1742]
[1765031827801,0.36096656,90023.0,90013.0,0.1853085]
[1765031828500,0.36096656,90023.0,90013.0,0.26478312]
[1765031828699,0.00016656,90023.0,90013.0,0.26478312]
[1765031828897,0.00016656,90023.0,90022.0,0.1853074]
[1765031831900,0.00016656,90023.0,90022.0,0.1863074]
[1765031832593,0.00016656,90023.0,90022.0,0.1873074]
[1765031833399,0.00016656,90023.0,90022.0,0.1863074]
[1765031833602,0.00016656,90023.0,90022.0,0.1873074]
[1765031834589,0.3608,90031.0,90022.0,0.1873074]
[1765031834590,0.3608,90031.0,90030.0,0.0111064]
[1765031834797,0.08681,90040.0,90039.0,0.1853053]
[1765031835900,0.00016666,90049.0,90041.0,0.1742]
[1765031836906,0.5349,90042.0,90041.0,0.1742]
[1765031839301,0.44761,90042.0,90041.0,0.1742]
[1765031839500,0.08681,90042.0,90041.0,0.1742]
[1765031839700,0.1741,90042.0,90041.0,0.1742]
[1765031842302,0.1741,90042.0,90041.0,0.1752]
[1765031844809,0.1741,90042.0,90041.0,0.1742]
[1765031845509,0.1741,90042.0,90041.0,0.68992]
[1765031847802,0.1741,90042.0,90041.0,0.68988]
[1765031848410,0.1741,90033.0,90032.0,0.05945883]
[1765031848612,0.1741,90031.0,90030.0,0.18533405]
[1765031848803,0.1741,90031.0,90030.0,0.17436666]
[1765031850909,0.1741,90031.0,90030.0,0.00016666]
[1765031852314,0.1741,90031.0,90030.0,0.14706666]
[1765031853911,0.1741,90031.0,90030.0,0.07343666]
[1765031854708,0.1741,90031.0,90030.0,0.14706666]
[1765031859312,0.1741,90031.0,90030.0,0.20652549]
[1765031860908,0.1741,90031.0,90030.0,0.14706666]
[1765031861108,0.1741,90031.0,90030.0,0.20657353]
[1765031861315,0.1741,90031.0,90030.0,0.14706666]
[1765031863509,0.1741,90031.0,90030.0,0.20658678]
[1765031863708,0.1741,90031.0,90030.0,0.14706666]
[1765031863919,0.1741,90031.0,90030.0,0.20658678]
[1765031865710,0.5349,90031.0,90030.0,0.20658678]
[1765031866611,0.5349,90031.0,90030.0,0.00016666]
[1765031878327,0.5349,90031.0,90030.0,0.05968678]
[1765031884128,0.44761,90031.0,90030.0,0.20364678]
[1765031884331,0.07142764,90046.0,90045.0,0.14396]
[1765031884629,0.14093764,90046.0,90045.0,0.14396]
[1765031886417,0.14293764,90046.0,90045.0,0.14396]
[1765031886920,0.14093764,90046.0,90045.0,0.14396]
[1765031890825,0.14193764,90046.0,90045.0,0.14396]
[1765031892340,0.14093764,90046.0,90045.0,0.14396]
[1765031893434,0.43195,90068.0,90067.0,0.0111018]
[1765031893626,0.43195,90068.0,90052.0,0.03193]
[1765031893627,0.1816,90076.0,90075.0,0.14396]
[1765031895836,0.1826,90076.0,90075.0,0.14396]
[1765031896031,0.1826,90076.0,90066.0,0.00016657]
[1765031896032,0.1816,90070.0,90069.0,0.1550615]
[1765031896240,0.14066,90067.0,90066.0,0.07321657]
[1765031896437,0.14066,90067.0,90066.0,0.00016657]
[1765031897537,0.14166,90067.0,90066.0,0.00016657]
[1765031898841,0.14266,90067.0,90066.0,0.00016657]
[1765031900244,0.14166,90067.0,90066.0,0.00016657]
[1765031901739,0.14266,90067.0,90066.0,0.00016657]
[1765031901941,0.50346,90067.0,90066.0,0.00016657]
[1765031903446,0.50146,90067.0,90066.0,0.00016657]
[1765031903745,0.50346,90067.0,90066.0,0.00016657]
[1765031905043,0.50146,90067.0,90066.0,0.00016657]
[1765031905243,0.14266,90067.0,90066.0,0.50492657]
[1765031906138,0.002,90067.0,90066.0,0.50492657]
[1765031906338,0.1816,90080.0,90079.0,0.14396]
[1765031906840,0.1816,90080.0,90079.0,0.1550603]
[1765031908945,0.1826,90080.0,90079.0,0.1550603]
[1765031909344,0.001,90080.0,90079.0,0.1550603]
[1765031910549,0.001,90080.0,90079.0,0.5158603]
[1765031911949,0.001,90080.0,90079.0,1.0312603]
[1765031920451,0.3608,90100.0,90084.0,0.0110997]
[1765031920649,0.3608,90100.0,90084.0,0.1204597]
[1765031921751,0.00116657,90085.0,90084.0,0.1204597]
[1765031922559,0.06183657,90085.0,90084.0,0.1204597]
[1765031922759,0.12479657,90085.0,90084.0,0.1204597]
[1765031923253,0.00116657,90085.0,90084.0,0.1204597]
[1765031923460,0.06183657,90085.0,90084.0,0.1204597]
[1765031923661,0.03745,90110.0,90101.0,0.05468]
[1765031923850,0.12363,90102.0,90101.0,0.6356976]
[1765031924969,0.005,90102.0,90101.0,0.6356976]
[1765031925564,0.12863,90102.0,90101.0,0.6356976]
[1765031925877,0.06567,90102.0,90101.0,0.6356976]
[1765031926166,0.005,90102.0,90101.0,0.6356976]
[1765031926852,0.06467,90102.0,90101.0,0.6356976]
[1765031927057,0.06067,90102.0,90101.0,0.6356976]
[1765031927555,0.16108,90110.0,90109.0,0.1204566]
[1765031928253,0.16108,90110.0,90109.0,0.13164728]
[1765031928869,0.16108,90110.0,90109.0,0.1204566]
[1765031929366,0.16108,90110.0,90109.0,0.0110966]
[1765031929574,0.16108,90110.0,90109.0,0.1204566]
[1765031930561,0.12363,90110.0,90109.0,0.1204566]
[1765031931365,0.12363,90110.0,90109.0,0.1214566]
[1765031933769,0.12363,90110.0,90109.0,0.6366566]
[1765031934273,0.12363,90110.0,90109.0,0.1214566]
[1765031934576,0.12363,90110.0,90109.0,0.6366566]
[1765031934873,0.06067,90110.0,90109.0,0.6366566]
[1765031935772,0.00016657,90111.0,90110.0,0.08326]
[1765031936869,0.12081657,90111.0,90110.0,0.08326]
[1765031937074,0.12081657,90111.0,90110.0,0.08526]
[1765031937465,0.12081657,90111.0,90110.0,0.08626]
[1765031938272,0.12081657,90111.0,90110.0,0.14542961]
[1765031939271,0.12081657,90111.0,90110.0,0.08626]
[1765031942177,0.12081657,90111.0,90110.0,0.60138]
[1765031942576,0.12081657,90111.0,90110.0,0.003]
[1765031942775,0.12081657,90111.0,90110.0,0.58936]
[1765031943070,0.12081657,90111.0,90110.0,0.58736]
[1765031943276,0.12081657,90111.0,90110.0,0.58836]
[1765031943467,0.12081657,90111.0,90110.0,0.07324]
[1765031943671,0.12081657,90111.0,90110.0,0.55124]
[1765031944370,0.12081657,90111.0,90110.0,0.55224]
[1765031945080,0.12081657,90111.0,90110.0,0.001]
[1765031945380,0.12081657,90111.0,90110.0,0.57539347]
[1765031946166,0.12081657,90111.0,90110.0,0.06027347]
[1765031946366,0.12081657,90111.0,90110.0,0.05927347]
[1765031946569,0.11229,90109.0,90108.0,0.57439347]
[1765031946778,0.11229,90109.0,90108.0,0.51512]
[1765031946978,0.11229,90109.0,90106.0,0.05927347]
[1765031947178,0.11229,90097.0,90095.0,0.09030685]
[1765031947382,0.11229,90093.0,90092.0,0.0115073]
[1765031947582,0.11229,90093.0,90092.0,0.5266273]
[1765031947776,0.11229,90093.0,90092.0,0.0115073]
[1765031947983,0.11229,90093.0,90092.0,0.5266273]
[1765031948584,0.11229,90093.0,90092.0,0.5988673]
[1765031949882,0.05779,90093.0,90092.0,0.6008673]
[1765031950089,0.14724,90096.0,90095.0,0.07224]
[1765031950381,0.05779,90096.0,90095.0,0.43304]
[1765031950689,0.11229,90096.0,90095.0,0.43304]
[1765031951486,0.05779,90096.0,90095.0,0.43304]
[1765031951784,0.05779,90102.0,90101.0,0.07224]
[1765031952084,0.14724,90108.0,90107.0,0.0833369]
[1765031953084,0.11229,90105.0,90104.0,0.03612]
[1765031953280,0.11229,90105.0,90104.0,0.55124]
[1765031953791,0.11229,90105.0,90104.0,0.58736]
[1765031954291,0.11229,90105.0,90104.0,0.58836]
[1765031955486,0.11229,90105.0,90104.0,0.001]
[1765031955684,0.11229,90105.0,90104.0,0.51612]
[1765031956088,0.11229,90105.0,90104.0,0.001]
[1765031956890,0.11229,90103.0,90102.0,0.51512]
[1765031957086,0.11229,90099.0,90097.0,0.07920855]
[1765031957387,0.14724,90096.0,90095.0,0.44000855]
[1765031957584,0.14724,90096.0,90086.0,0.09938577]
[1765031957585,0.11229,90094.0,90092.0,0.07937512]
[1765031957786,0.11229,90093.0,90092.0,0.00016657]
[1765031959083,0.11229,90093.0,90092.0,0.05950925]
[1765031959288,0.11229,90093.0,90092.0,0.00016657]
[1765031959696,0.11229,90093.0,90092.0,0.00116657]
[1765031962095,0.11229,90085.0,90084.0,0.05934268]
[1765031962395,0.11229,90081.0,90079.0,0.05934268]
[1765031962596,0.11229,90080.0,90079.0,0.05934268]
[1765031962897,0.11229,90077.0,90076.0,0.05934268]
[1765031963090,0.11229,90077.0,90075.0,0.07044348]
[1765031963292,0.11229,90075.0,90074.0,0.05934268]
[1765031964401,0.11229,90075.0,90073.0,0.05934268]
[1765031964695,0.11229,90074.0,90073.0,0.05934268]
[1765031965400,0.11229,90073.0,90072.0,0.13158268]
[1765031965901,0.11229,90073.0,90072.0,0.09546268]
[1765031966295,0.11229,90073.0,90072.0,0.07224]
[1765031966694,0.11229,90073.0,90072.0,0.08024]
[1765031969606,0.36096647,90085.0,90084.0,0.07224]
[1765031969796,0.00016647,90085.0,90084.0,0.94824]
[1765031970099,0.00016647,90085.0,90084.0,1.37824]
[1765031970304,0.14177,90102.0,90101.0,0.03822]
[1765031971401,0.10682,90100.0,90099.0,0.0493178]
[1765031973111,0.10682,90100.0,90099.0,0.1094841]
[1765031974200,0.10682,90100.0,90099.0,0.0503178]
[1765031977694,0.10682,90100.0,90099.0,0.0120978]
[1765031977894,0.10682,90100.0,90099.0,0.0503178]
[1765031978511,0.10682,90100.0,90099.0,0.0312078]
[1765031978807,0.10682,90100.0,90099.0,0.001]
[1765031979006,0.03495,90102.0,90099.0,0.0110979]
[1765031979207,0.10682,90100.0,90099.0,0.0120979]
[1765031979408,0.10682,90100.0,90099.0,0.0503179]
[1765031979603,0.08814,90102.0,90101.0,0.03822]
[1765031979808,0.08814,90102.0,90101.0,0.77902]
[1765031979809,0.05319,90102.0,90101.0,0.77902]
[1765031980008,0.10682,90102.0,90101.0,0.39902]
[1765031981605,0.10682,90102.0,90101.0,0.40002]
[1765031981911,0.10682,90102.0,90101.0,0.40402]
[1765031982214,0.10682,90102.0,90101.0,0.40302]
[1765031982405,0.10682,90102.0,90101.0,0.40002]
[1765031982610,0.10682,90102.0,90101.0,0.40402]
[1765031983811,0.10682,90102.0,90101.0,0.57931259]
[1765031984011,0.10682,90102.0,90101.0,0.005]
[1765031984913,0.1179182,90096.0,90094.0,0.05915259]
[1765031985116,0.10682,90093.0,90092.0,0.00016647]
[1765031986316,0.10682,90093.0,90092.0,0.39918647]
[1765031986511,0.10682,90093.0,90092.0,0.91534647]
[1765031987216,0.0302,90097.0,90096.0,0.03822]
[1765031987518,0.0302,90097.0,90096.0,0.0974003]
[1765031987908,0.08339,90104.0,90103.0,0.03822]
[1765031988115,0.13702,90104.0,90103.0,0.55338]
[1765031989011,0.13702,90104.0,90103.0,0.5644774]
[1765031990611,0.10682,90103.0,90102.0,0.3608]
[1765031991812,0.10682,90103.0,90102.0,0.38918]
[1765031992413,0.10782,90103.0,90102.0,0.4483603]
[1765031993311,0.10682,90103.0,90102.0,0.4483603]
[1765031993716,0.10682,90103.0,90102.0,0.4493603]
[1765031994117,0.0302,90104.0,90103.0,0.0296374]
[1765031994323,0.0815,90104.0,90103.0,0.0888177]
[1765031994716,0.12938,90104.0,90103.0,0.0888177]
[1765031994918,0.12938,90104.0,90103.0,0.0296374]
[1765031995822,0.12938,90104.0,90103.0,0.0306374]
[1765031996823,0.3608,90113.0,90110.0,0.01854]
[1765031997028,0.05146647,90111.0,90110.0,0.01854]
[1765031997324,0.09934647,90111.0,90110.0,0.01854]
[1765031999613,0.09934647,90111.0,90110.0,0.37934]
[1765031999923,0.09934647,90111.0,90110.0,0.38034]
[1765032001428,0.09934647,90111.0,90110.0,0.001]
[1765032002819,0.10034647,90111.0,90110.0,0.001]
[1765032003019,0.09738,90107.0,90106.0,0.51512]
[1765032003220,0.00116647,90111.0,90102.0,0.3608]
[1765032003221,0.12448,90104.0,90103.0,0.07920855]
[1765032003418,0.09738,90103.0,90102.0,0.3608]
[1765032004422,0.09738,90103.0,90102.0,0.36502]
[1765032004822,0.09738,90103.0,90102.0,0.3608]
[1765032005126,0.09838,90103.0,90102.0,0.3608]
[1765032005323,0.09838,90103.0,90102.0,0.36924]
[1765032006020,0.09738,90103.0,90102.0,0.36924]
[1765032006220,0.09838,90103.0,90102.0,0.36924]
[1765032007529,0.09838,90103.0,90102.0,0.3608]
[1765032007530,0.09738,90103.0,90102.0,0.3608]
[1765032008821,0.09838,90103.0,90102.0,0.3608]
[1765032010333,0.09838,90103.0,90102.0,0.36502]
[1765032010649,0.09838,90103.0,90102.0,0.36924]
[1765032012133,0.09738,90103.0,90102.0,0.36924]
[1765032013333,0.09738,90103.0,90102.0,0.00844]
[1765032014339,0.09738,90102.0,90101.0,0.59432855]
[1765032015429,0.09738,90102.0,90101.0,0.51512]
[1765032016531,0.09738,90102.0,90101.0,0.52356]
[1765032016726,0.09838,90102.0,90101.0,0.52356]
[1765032016921,0.09838,90102.0,90101.0,0.51934]
[1765032017130,0.09838,90102.0,90101.0,0.51512]
[1765032017833,0.09738,90100.0,90099.0,0.3608]
[1765032018028,0.12448,90096.0,90095.0,0.0195383]
[1765032018230,0.12448,90096.0,90095.0,0.5346583]
[1765032020136,0.04897,90094.0,90093.0,0.09938577]
[1765032020436,0.09738,90093.0,90092.0,0.5944291]
[1765032020633,0.09738,90093.0,90092.0,0.00016647]
[1765032021841,0.09738,90093.0,90092.0,0.00216647]
[1765032022343,0.09738,90093.0,90092.0,0.00316647]
[1765032024745,0.09738,90093.0,90092.0,0.00116647]
[1765032027639,0.09738,90093.0,90092.0,0.00960647]
[1765032032641,0.09738,90093.0,90092.0,0.00538647]
[1765032033560,0.09738,90093.0,90092.0,0.00116647]
[1765032036468,0.08427,90088.0,90087.0,0.07914263]
[1765032036963,0.08427,90086.0,90083.0,0.07914263]
[1765032037268,0.08427,90083.0,90082.0,0.09024263]
[1765032037467,0.08427,90083.0,90082.0,0.0111]
[1765032038660,0.08427,90082.0,90081.0,0.43994263]
[1765032039367,0.08427,90082.0,90081.0,0.07914263]
[1765032039766,0.08427,90081.0,90080.0,0.59430263]
[1765032040063,0.08427,90081.0,90080.0,0.07914263]
[1765032040368,0.10999,90080.0,90079.0,0.07914263]
[1765032040559,0.08427,90079.0,90078.0,0.07914263]
[1765032042570,0.08427,90078.0,90077.0,0.07914263]
[1765032043369,0.10999,90075.0,90074.0,0.0111009]
[1765032044965,0.08427,90074.0,90073.0,0.36096647]
[1765032046163,0.08427,90074.0,90073.0,0.36296647]
[1765032046362,0.08427,90074.0,90073.0,0.36796647]
[1765032049878,0.04185,90074.0,90073.0,0.36796647]
[1765032050179,0.06757,90075.0,90074.0,0.011101]
[1765032050478,0.10999,90075.0,90074.0,0.011101]
[1765032050978,0.06757,90075.0,90074.0,0.011101]
[1765032051179,0.10999,90075.0,90074.0,0.011101]
[1765032051370,0.10999,90075.0,90074.0,0.013101]
[1765032051977,0.10999,90075.0,90074.0,0.018101]
[1765032055583,0.10999,90075.0,90074.0,0.378901]
[1765032057074,0.10999,90075.0,90074.0,0.47828677]
[1765032061377,0.10999,90075.0,90074.0,0.378901]
[1765032066588,0.10999,90075.0,90074.0,0.798901]
[1765032068286,0.10999,90075.0,90074.0,0.378901]
[1765032073790,0.06055,90088.0,90087.0,0.0110994]
[1765032073993,0.09791,90088.0,90087.0,0.8870994]
[1765032075294,0.09791,90088.0,90087.0,0.8900994]
[1765032075495,0.09791,90088.0,90087.0,0.8910994]
[1765032085894,0.09791,90088.0,90087.0,0.88]
[1765032098905,0.02221647,90092.0,90088.0,0.0110992]
[1765032099106,0.0914,90108.0,90107.0,0.0110969]
[1765032099302,0.0914,90108.0,90107.0,0.5262169]
[1765032099502,0.0914,90108.0,90107.0,0.60535286]
[1765032100212,0.0914,90108.0,90107.0,0.5262169]
[1765032100513,0.0934,90108.0,90107.0,0.5262169]
[1765032101310,0.0914,90108.0,90107.0,0.5262169]
[1765032108515,0.0914,90108.0,90107.0,0.5272169]
[1765032109821,0.0914,90108.0,90107.0,0.51612]
[1765032110009,0.0914,90108.0,90107.0,0.5272169]
[1765032110515,0.0914,90108.0,90107.0,0.5271369]
[1765032114316,0.0914,90108.0,90107.0,0.0120969]
[1765032114520,0.0914,90108.0,90107.0,0.5271369]
[1765032124230,0.0914,90108.0,90107.0,0.60627286]
[1765032126022,0.0914,90108.0,90107.0,0.59517596]
[1765032126229,0.0914,90108.0,90107.0,0.51604]
[1765032126430,0.0914,90108.0,90107.0,0.5271369]
[1765032129742,0.0914,90108.0,90107.0,0.51604]
[1765032142063,0.05391,90116.0,90115.0,0.0110959]
[1765032142362,0.0867,90116.0,90115.0,0.09026173]
[1765032142660,0.0867,90116.0,90115.0,0.0110959]
[1765032143255,0.06577,90115.0,90114.0,0.3608]
[1765032148664,0.06577,90115.0,90107.0,0.51504]
[1765032148665,0.08623,90108.0,90107.0,0.51504]
[1765032149061,0.06577,90105.0,90104.0,0.09900501]
[1765032149258,0.08623,90104.0,90103.0,0.09900501]
[1765032149560,0.06577,90102.0,90101.0,0.51492]
[1765032151266,0.06577,90102.0,90101.0,0.51792]
[1765032151959,0.06577,90102.0,90101.0,0.003]
[1765032152366,0.06577,90102.0,90101.0,0.004]
[1765032160168,0.06577,90102.0,90101.0,0.01593009]
[1765032160360,0.06041,90099.0,90098.0,0.00016647]
[1765032160561,0.01749,90100.0,90090.0,0.3608]
[1765032160869,0.06041,90084.0,90083.0,0.10492338]
[1765032161268,0.06041,90084.0,90083.0,0.0515]
[1765032162263,0.06041,90084.0,90083.0,0.0535]
[1765032162465,0.06041,90084.0,90083.0,0.002]
[1765032163365,0.06041,90084.0,90083.0,0.007]
[1765032170984,0.06041,90084.0,90083.0,0.03275]
[1765032173176,0.06041,90084.0,90083.0,0.06036]
[1765032183590,0.02905,90084.0,90083.0,0.13953338]
[1765032183784,0.05776,90084.0,90083.0,0.13953338]
[1765032183984,0.07551,90084.0,90083.0,0.13953338]
[1765032184693,0.07598,90088.0,90087.0,0.04952]
[1765032186094,0.07598,90088.0,90087.0,0.05352]
[1765032186282,0.07598,90088.0,90087.0,0.05552]
[1765032186484,0.07598,90088.0,90087.0,0.006]
[1765032189095,0.05849,90081.0,90074.0,0.00016647]
[1765032189285,0.01505,90068.0,90064.0,0.0719522]
[1765032189490,0.05849,90065.0,90064.0,0.0719522]
[1765032192199,0.05949,90065.0,90064.0,0.0789522]
[1765032192498,0.05949,90065.0,90064.0,0.0819522]
[1765032192801,0.001,90065.0,90064.0,0.0819522]
[1765032193300,0.03078,90065.0,90064.0,0.0819522]
[1765032193892,0.001,90065.0,90064.0,0.0819522]
[1765032195600,0.05949,90065.0,90064.0,0.0819522]
[1765032196693,0.05949,90065.0,90064.0,0.07085]
[1765032196901,0.07724,90065.0,90064.0,0.07085]
[1765032201797,0.05949,90065.0,90064.0,0.07085]
[1765032203507,0.07724,90065.0,90064.0,0.07085]
[1765032204507,0.001,90065.0,90064.0,0.07085]
[1765032204709,0.05949,90065.0,90064.0,0.07085]
[1765032206612,0.07724,90065.0,90064.0,0.04004]
[1765032206912,0.07724,90065.0,90064.0,0.07085]
[1765032207116,0.001,90065.0,90064.0,0.07085]
[1765032208999,0.03078,90065.0,90064.0,0.07085]
[1765032209309,0.05949,90065.0,90064.0,0.07085]
[1765032215328,0.05949,90065.0,90064.0,0.16985501]
[1765032216428,0.05949,90065.0,90064.0,0.07085]
[1765032220928,0.05949,90065.0,90064.0,0.58593]
[1765032222539,0.05949,90065.0,90064.0,0.01]
[1765032222934,0.05949,90065.0,90064.0,0.0407]
[1765032223334,0.05949,90065.0,90064.0,0.07032]
[1765032224038,0.05949,90065.0,90064.0,0.01]
[1765032225333,0.05984,90057.0,90056.0,0.07926052]
[1765032225543,0.05984,90057.0,90055.0,0.07942697]
[1765032225839,0.05984,90056.0,90055.0,0.00016645]
[1765032227737,0.06084,90056.0,90055.0,0.00616645]
[1765032228237,0.06084,90056.0,90055.0,0.00916645]
[1765032229047,0.05984,90047.0,90046.0,0.00027764]
[1765032230938,0.06284,90047.0,90046.0,0.00027764]
[1765032233344,0.06284,90047.0,90046.0,0.02837764]
[1765032233541,0.06284,90047.0,90033.0,0.03426052]